bitfinex-derivatives/quotes_BNBF0:USTF0_20250329
["timestamp","ask_amount","ask_price","bid_price","bid_amount"]
[1743211256769,1.21801812,622.07,621.37,1.183]
[1743211256969,0.93472134,622.08,621.37,1.183]
[1743211256970,1.21801812,622.06,621.37,1.183]
[1743211257167,1.21801812,622.05,621.37,1.183]
[1743211257368,1.21801812,622.04,621.37,1.183]
[1743211257665,2.15273946,622.03,621.37,1.183]
[1743211257868,1.21801812,622.02,621.37,1.183]
[1743211258164,1.21801812,622.01,621.38,1.001]
[1743211258367,1.21801812,622.0,621.38,1.001]
[1743211258571,1.21801812,621.99,621.38,1.001]
[1743211258772,1.21801812,621.98,621.38,1.001]
[1743211259069,1.21801812,621.97,621.38,1.001]
[1743211259270,1.21801812,621.96,621.38,1.001]
[1743211259466,1.21801812,621.95,621.38,1.001]
[1743211259667,1.21801812,621.94,621.38,1.001]
[1743211259869,1.21801812,621.93,621.38,1.001]
[1743211260169,1.21921001,621.92,621.38,1.001]
[1743211260367,2.15393135,621.91,621.38,1.001]
[1743211260572,1.21921001,621.9,621.38,1.001]
[1743211260769,1.21921001,621.89,621.38,1.001]
[1743211261071,1.21921001,621.88,621.38,1.001]
[1743211261267,1.21921001,621.87,621.38,1.001]
[1743211261470,1.21921001,621.86,621.38,1.001]
[1743211261672,1.21921001,621.85,621.38,1.001]
[1743211261870,1.21921001,621.84,621.38,1.001]
[1743211262070,1.21921001,621.83,621.38,1.001]
[1743211262272,1.21921001,621.82,621.38,1.001]
[1743211262466,1.21921001,621.81,621.38,1.001]
[1743211262669,2.15393135,621.8,621.38,1.001]
[1743211262971,1.21921001,621.79,621.38,1.001]
[1743211263166,1.21921001,621.78,621.38,1.001]
[1743211263370,1.21921001,621.77,621.38,1.001]
[1743211263670,1.21921001,621.76,621.38,1.001]
[1743211263869,1.21921001,621.75,621.38,1.001]
[1743211264075,1.21921001,621.74,621.38,1.001]
[1743211264270,2.15393135,621.73,621.38,1.001]
[1743211264472,1.21921001,621.72,621.38,1.001]
[1743211264672,1.21921001,621.71,621.38,1.001]
[1743211264873,1.21921001,621.7,621.38,1.001]
[1743211265074,1.21921001,621.69,621.38,1.001]
[1743211265271,1.21921001,621.68,621.38,1.001]
[1743211265473,1.21814347,621.67,621.38,1.001]
[1743211265774,1.21814347,621.66,621.38,1.001]
[1743211265975,1.21814347,621.65,621.38,1.001]
[1743211266177,1.21814347,621.64,621.38,1.001]
[1743211266377,1.21814347,621.63,621.38,1.001]
[1743211266571,1.21814347,621.62,621.38,1.001]
[1743211266775,2.15286481,621.61,621.38,1.001]
[1743211266976,1.21814347,621.6,621.38,1.001]
[1743211267175,1.21814347,621.59,621.38,1.001]
[1743211267377,1.21814347,621.58,621.38,1.001]
[1743211267573,1.21814347,621.57,621.38,1.001]
[1743211267777,0.93472134,621.58,621.38,1.001]
[1743211267778,1.21814347,621.56,621.38,1.001]
[1743211267979,1.21814347,621.55,621.38,1.001]
[1743211268178,2.15286481,621.54,621.38,1.001]
[1743211268379,1.21814347,621.53,621.38,1.001]
[1743211268575,1.21814347,621.52,621.38,1.001]
[1743211268782,1.21814347,621.51,621.38,1.001]
[1743211269082,2.15286481,621.5,621.38,1.001]
[1743211269275,0.93472134,621.5,621.38,1.001]
[1743211269882,0.93472134,621.49,621.38,1.001]
[1743211270281,0.93472134,621.48,621.38,1.001]
[1743211270883,0.93472134,621.47,621.38,1.001]
[1743211271283,0.28010077,621.62,621.37,1.183]
[1743211271582,2.15273373,621.61,621.37,1.183]
[1743211271782,1.21789334,621.6,621.37,1.183]
[1743211271981,1.21789334,621.59,621.37,1.183]
[1743211272182,1.21789334,621.58,621.37,1.183]
[1743211272385,1.21789334,621.57,621.37,1.183]
[1743211272683,2.15273373,621.56,621.37,1.183]
[1743211272883,1.21789334,621.55,621.37,1.183]
[1743211273078,0.28009175,621.62,621.37,1.183]
[1743211273079,2.15273373,621.54,621.37,1.183]
[1743211273282,1.21779972,621.53,621.37,1.183]
[1743211273483,1.21779972,621.52,621.37,1.183]
[1743211273681,1.21779972,621.51,621.37,1.183]
[1743211273885,0.93484039,621.5,621.22,1.175]
[1743211274387,0.93484039,621.49,621.22,1.175]
[1743211274882,0.93484039,621.48,621.22,1.175]
[1743211275282,0.28012106,621.62,621.22,1.175]
[1743211275583,2.15259245,621.61,621.22,1.175]
[1743211275787,1.21779962,621.6,621.22,1.175]
[1743211275986,1.21779962,621.59,621.22,1.175]
[1743211276186,1.21779962,621.58,621.22,1.175]
[1743211276384,1.21779962,621.57,621.22,1.175]
[1743211276582,2.15259245,621.56,621.22,1.175]
[1743211276783,1.21779962,621.55,621.22,1.175]
[1743211277085,0.28012106,621.62,621.22,1.175]
[1743211277086,2.15259245,621.54,621.22,1.175]
[1743211277286,1.21779962,621.53,621.22,1.175]
[1743211277483,1.21765107,621.52,621.22,1.175]
[1743211277682,2.1524439,621.51,621.22,1.175]
[1743211277885,0.93479283,621.51,621.22,1.175]
[1743211278190,0.93479283,621.5,621.22,1.175]
[1743211278689,0.93479283,621.49,621.22,1.175]
[1743211279690,0.93479283,621.48,621.22,1.175]
[1743211279992,0.93479283,621.47,621.22,1.175]
[1743211280491,0.28012332,621.61,621.22,1.175]
[1743211280693,1.21770702,621.6,621.22,1.175]
[1743211280991,2.15242984,621.59,621.22,1.175]
[1743211281191,1.21770702,621.58,621.22,1.175]
[1743211281390,1.21770702,621.57,621.22,1.175]
[1743211281588,1.21770702,621.56,621.22,1.175]
[1743211281785,1.21770702,621.55,621.22,1.175]
[1743211281989,1.21770702,621.54,621.22,1.175]
[1743211282189,1.21770702,621.53,621.22,1.175]
[1743211282392,1.21770702,621.52,621.22,1.175]
[1743211282588,1.21770702,621.51,621.22,1.175]
[1743211282894,2.15242984,621.5,621.22,1.175]
[1743211283089,0.93472282,621.5,621.22,1.175]
[1743211283688,0.93472282,621.49,621.22,1.175]
[1743211284496,0.93472282,621.48,621.22,1.175]
[1743211285095,0.93472282,621.47,621.22,1.175]
[1743211285598,0.28012445,621.61,621.22,1.175]
[1743211285891,1.217588,621.6,621.22,1.175]
[1743211286095,1.217588,621.59,621.22,1.175]
[1743211286290,1.217588,621.58,621.22,1.175]
[1743211286495,1.217588,621.57,621.22,1.175]
[1743211286696,1.217588,621.56,621.22,1.175]
[1743211286998,1.217588,621.55,621.22,1.175]
[1743211287290,1.217588,621.54,621.22,1.175]
[1743211287494,1.217588,621.53,621.22,1.175]
[1743211287696,1.217588,621.52,621.22,1.175]
[1743211287897,1.217588,621.51,621.22,1.175]
[1743211288091,1.217588,621.5,621.17,1.177]
[1743211288297,1.217588,621.49,621.17,1.177]
[1743211288499,0.9346356,621.51,621.17,1.177]
[1743211288698,0.9346356,621.48,621.17,1.177]
[1743211288899,0.9346356,621.47,621.17,1.177]
[1743211289300,0.28011994,621.61,621.17,1.177]
[1743211289491,1.21808834,621.6,621.17,1.177]
[1743211289697,1.21808834,621.59,621.17,1.177]
[1743211289990,2.15310654,621.58,621.17,1.177]
[1743211290297,2.15310654,621.57,621.17,1.177]
[1743211290493,1.21808834,621.56,621.17,1.177]
[1743211290697,1.21808834,621.55,621.17,1.177]
[1743211290896,1.21808834,621.54,621.17,1.177]
[1743211291099,1.21791997,621.53,621.17,1.177]
[1743211291300,0.9350182,621.55,621.17,1.177]
[1743211291501,0.9350182,621.53,621.17,1.177]
[1743211292099,0.9350182,621.52,621.17,1.177]
[1743211292699,0.9350182,621.51,621.17,1.177]
[1743211293504,0.9350182,621.5,621.17,1.177]
[1743211294203,0.9350182,621.49,621.17,1.177]
[1743211294802,0.9350182,621.48,621.17,1.177]
[1743211295397,0.2801267,621.61,621.17,1.177]
[1743211295599,1.21807667,621.6,621.17,1.177]
[1743211295799,1.21807667,621.59,621.17,1.177]
[1743211296001,1.21807667,621.58,621.17,1.177]
[1743211296298,1.21807667,621.57,621.17,1.177]
[1743211296604,2.1530834,621.56,621.17,1.177]
[1743211296805,1.8771041,621.55,621.17,1.177]
[1743211297104,1.21807667,621.54,621.17,1.177]
[1743211297301,1.21807667,621.53,621.17,1.177]
[1743211297501,1.21807667,621.52,621.17,1.177]
[1743211297697,1.21807667,621.51,621.17,1.177]
[1743211297898,1.21807667,621.5,621.17,1.177]
[1743211298097,2.1530834,621.49,621.17,1.177]
[1743211298299,1.21807667,621.48,621.17,1.177]
[1743211298498,2.1530834,621.47,621.17,1.177]
[1743211298700,0.93500673,621.47,621.17,1.177]
[1743211299102,0.93500673,621.46,621.17,1.177]
[1743211299908,0.93500673,621.46,621.15,1.143]
[1743211300203,0.93500673,621.45,621.15,1.143]
[1743211300799,0.93500673,621.44,621.15,1.143]
[1743211301601,0.93500673,621.43,621.15,1.143]
[1743211302007,0.32139356,622.29,621.15,1.143]
[1743211302304,1.87712092,622.28,621.15,1.143]
[1743211302506,1.87712092,622.27,621.15,1.143]
[1743211302804,2.19852997,622.26,621.15,1.143]
[1743211303001,2.19853514,622.25,621.15,1.143]
[1743211303207,2.1985403,622.24,621.15,1.143]
[1743211303402,3.13345859,622.23,621.15,1.143]
[1743211303603,2.19855063,622.22,621.15,1.143]
[1743211303801,1.87712092,622.21,621.15,1.143]
[1743211304005,2.19856097,622.2,621.15,1.143]
[1743211304204,2.19856613,622.19,621.15,1.143]
[1743211304404,2.1985713,622.18,621.15,1.143]
[1743211304605,2.19857647,622.17,621.15,1.143]
[1743211304807,2.19858163,622.16,621.15,1.143]
[1743211305005,2.19843103,622.15,621.15,1.143]
[1743211305203,2.1984362,622.14,621.15,1.143]
[1743211305405,1.87696515,622.13,621.15,1.143]
[1743211305604,1.87696515,622.12,621.15,1.143]
[1743211305802,1.53644099,622.14,621.15,1.143]
[1743211305803,1.87696515,622.11,621.15,1.143]
[1743211306003,1.87696515,622.1,621.15,1.143]
[1743211306206,1.87696515,622.09,621.15,1.143]
[1743211306409,1.87696515,622.08,621.15,2.087]
[1743211306602,1.87696515,622.07,621.15,2.087]
[1743211306807,1.87696515,622.06,621.15,2.087]
[1743211307110,2.81187827,622.05,621.15,2.087]
[1743211307308,1.87696515,622.04,621.15,2.087]
[1743211307509,2.81187827,622.03,621.15,2.087]
[1743211307708,1.87696515,622.02,621.15,2.087]
[1743211307908,1.87696515,622.01,621.15,2.087]
[1743211308103,1.87696515,622.0,621.15,2.087]
[1743211308303,2.81187827,621.99,621.15,2.087]
[1743211308508,1.87696515,621.98,621.15,2.087]
[1743211308707,1.87696515,621.97,621.15,2.087]
[1743211309010,2.81187827,621.96,621.15,2.087]
[1743211309311,1.87696515,621.95,621.15,2.087]
[1743211309514,1.87696515,621.94,621.15,2.087]
[1743211309714,1.87696515,621.93,621.15,2.087]
[1743211310012,1.87696515,621.92,621.15,2.087]
[1743211310309,1.87696515,621.91,621.15,2.087]
[1743211310615,1.87696515,621.9,621.15,2.087]
[1743211310814,1.87696515,621.89,621.15,2.087]
[1743211311111,1.87696515,621.88,621.15,2.087]
[1743211311312,1.87696515,621.87,621.15,2.087]
[1743211311512,1.87696515,621.86,621.15,2.087]
[1743211311815,2.81187827,621.85,621.15,2.087]
[1743211312011,1.87696515,621.84,621.15,2.087]
[1743211312215,1.87696515,621.83,621.15,2.087]
[1743211312415,1.87696515,621.82,621.15,2.087]
[1743211312616,1.87696515,621.81,621.15,2.087]
[1743211312809,1.87713003,621.8,621.15,2.087]
[1743211313012,1.87713003,621.79,621.15,2.087]
[1743211313214,2.81204315,621.78,621.15,2.087]
[1743211313515,1.87713003,621.77,621.15,2.087]
[1743211313716,1.87713003,621.76,621.15,2.087]
[1743211313911,1.87713003,621.75,621.15,2.087]
[1743211314116,2.81204315,621.74,621.15,2.087]
[1743211314416,1.87713003,621.73,621.15,2.087]
[1743211314618,1.87713003,621.72,621.15,2.087]
[1743211314816,1.87710637,621.71,621.15,2.087]
[1743211315118,1.87710637,621.7,621.15,2.087]
[1743211315417,1.87710637,621.69,621.15,2.087]
[1743211315613,1.87710637,621.68,621.15,2.087]
[1743211315814,1.87710637,621.67,621.15,2.087]
[1743211316011,1.87710637,621.66,621.15,2.087]
[1743211316216,1.87710637,621.65,621.15,2.087]
[1743211316415,0.93491312,621.66,621.15,2.087]
[1743211316416,1.87710637,621.64,621.15,2.087]
[1743211316612,3.4796928,621.63,621.15,2.087]
[1743211316815,1.88568663,621.62,621.15,2.087]
[1743211317017,1.88568663,621.61,621.15,2.087]
[1743211317218,1.88568663,621.6,621.15,2.087]
[1743211317416,1.88568663,621.59,621.15,2.087]
[1743211317618,1.21504208,621.6,621.15,2.087]
[1743211317619,1.88568663,621.58,621.15,2.087]
[1743211317819,1.88568663,621.57,621.15,2.087]
[1743211318121,1.88568663,621.56,621.15,0.944]
[1743211318322,1.88568663,621.55,621.15,0.944]
[1743211318621,1.88546489,621.54,621.15,0.944]
[1743211318820,1.88546489,621.53,621.15,0.944]
[1743211319022,1.88546489,621.52,621.15,0.944]
[1743211319322,1.88546489,621.51,621.15,0.944]
[1743211319522,1.88546489,621.5,621.15,0.944]
[1743211319722,1.88546489,621.49,621.15,0.944]
[1743211319921,1.88546489,621.48,621.15,0.944]
[1743211320122,1.88546489,621.47,621.15,0.944]
[1743211320320,1.88546489,621.46,621.15,0.944]
[1743211320516,1.21940364,621.45,621.15,0.944]
[1743211320722,1.88524843,621.44,621.15,0.944]
[1743211320921,1.88524843,621.43,621.15,0.944]
[1743211321221,1.88524843,621.42,621.15,0.944]
[1743211321422,1.88524843,621.41,621.15,0.944]
[1743211321623,1.88524843,621.4,621.15,0.944]
[1743211321919,1.88524518,621.39,621.15,0.944]
[1743211322123,1.88524518,621.38,621.15,0.944]
[1743211322324,1.88524518,621.37,621.15,0.944]
[1743211322626,1.88524518,621.36,621.15,0.944]
[1743211322822,1.21940364,621.35,621.15,0.944]
[1743211323026,2.15431676,621.34,621.15,0.944]
[1743211323219,1.21940364,621.33,621.15,0.944]
[1743211323424,2.15431676,621.32,621.15,0.944]
[1743211323720,1.21940364,621.31,621.15,0.944]
[1743211323925,2.15431676,621.3,621.15,0.944]
[1743211324123,1.21940364,621.29,621.15,0.944]
[1743211324326,0.93491312,621.3,621.15,0.944]
[1743211324525,2.15251179,621.29,621.15,0.944]
[1743211324726,0.93491312,621.29,621.15,0.944]
[1743211325126,0.93491312,621.28,621.15,0.944]
[1743211325527,0.93491312,621.27,621.15,0.944]
[1743211325927,0.93491312,621.26,621.15,0.944]
[1743211326522,0.28020677,621.39,621.15,0.944]
[1743211326727,1.88230577,621.38,621.15,0.944]
[1743211326923,2.15052053,621.37,621.15,0.944]
[1743211327127,1.21720912,621.36,621.15,0.944]
[1743211327326,1.21720912,621.35,621.15,0.944]
[1743211327528,1.21720912,621.34,621.15,0.944]
[1743211327728,1.21720912,621.33,621.15,0.944]
[1743211327923,1.21720912,621.32,621.15,0.944]
[1743211328128,1.21720912,621.31,621.15,0.944]
[1743211328329,0.93331141,621.32,621.15,0.944]
[1743211328528,0.93331141,621.31,621.15,0.944]
[1743211328828,0.93331141,621.3,621.15,0.944]
[1743211329528,0.93331141,621.29,621.15,0.944]
[1743211330331,0.93331141,621.28,621.15,0.944]
[1743211330531,0.93331141,621.28,621.14,1.112]
[1743211331033,0.28020226,621.39,621.14,1.112]
[1743211331227,1.21623157,621.38,621.14,1.112]
[1743211331531,2.14865957,621.37,621.14,1.112]
[1743211331731,1.21605278,621.36,621.14,1.112]
[1743211331933,1.21605278,621.35,621.14,1.112]
[1743211332131,1.21605278,621.34,621.14,1.112]
[1743211332332,0.932428,621.34,621.14,1.112]
[1743211333134,0.932428,621.33,621.14,1.112]
[1743211333635,0.932428,621.32,621.14,1.112]
[1743211334135,0.932428,621.31,621.14,1.112]
[1743211334635,0.932428,621.3,621.14,1.112]
[1743211335232,0.932428,621.29,621.14,1.112]
[1743211336132,0.28020339,621.39,621.14,1.112]
[1743211336330,1.21563272,621.38,621.14,1.112]
[1743211336532,1.21563272,621.37,621.14,1.112]
[1743211336736,1.21563272,621.36,621.14,1.112]
[1743211336936,1.21563272,621.35,621.14,1.112]
[1743211337137,0.93203945,621.35,621.14,1.112]
[1743211337531,0.93203945,621.34,621.14,1.112]
[1743211337836,0.93203945,621.34,621.03,1.403]
[1743211338436,0.93203945,621.33,621.03,1.403]
[1743211339035,0.93203945,621.32,621.03,1.403]
[1743211339535,0.28021241,621.39,621.03,1.403]
[1743211339733,1.21536967,621.38,621.03,1.403]
[1743211339936,1.21536967,621.37,621.03,1.403]
[1743211340139,1.21536967,621.36,621.03,1.403]
[1743211340439,0.93189926,621.37,621.03,1.403]
[1743211340739,1.21529857,621.36,621.03,1.403]
[1743211340934,0.93189926,621.35,621.03,1.403]
[1743211341439,0.93189926,621.34,621.03,1.403]
[1743211341640,0.93189926,621.34,620.94,1.188]
[1743211342140,0.93189926,621.33,620.94,1.188]
[1743211342839,0.93189926,621.32,620.94,1.188]
[1743211343235,0.28022144,621.39,620.94,1.188]
[1743211343435,1.21514784,621.38,620.94,1.188]
[1743211343636,1.21514784,621.37,620.94,1.188]
[1743211343836,2.14684672,621.36,620.94,1.188]
[1743211344035,0.93169888,621.36,620.94,1.188]
[1743211344440,0.93169888,621.35,620.94,1.188]
[1743211344936,0.93169888,621.34,620.94,1.188]
[1743211345636,0.93169888,621.33,620.94,1.188]
[1743211346434,0.28022031,621.39,620.94,1.188]
[1743211346639,1.21513581,621.38,620.94,1.188]
[1743211346837,1.21513581,621.37,620.94,1.188]
[1743211347038,1.21513581,621.36,620.94,1.188]
[1743211347238,0.93171126,621.35,620.94,1.188]
[1743211347838,0.93171126,621.34,620.94,1.188]
[1743211348241,0.93171126,621.33,620.94,1.188]
[1743211348741,0.28021805,621.39,620.94,1.188]
[1743211348941,1.21516715,621.38,620.94,1.188]
[1743211349143,1.21516715,621.37,620.94,1.188]
[1743211349443,1.21516715,621.36,620.94,1.188]
[1743211349644,0.93174413,621.36,620.94,1.188]
[1743211350039,1.21515493,621.35,620.94,1.188]
[1743211350241,0.93174413,621.35,620.94,1.188]
[1743211350846,0.93174413,621.34,620.94,1.188]
[1743211351746,0.93174413,621.33,620.94,1.188]
[1743211352046,0.93174413,621.32,620.94,1.188]
[1743211352641,0.28022031,621.39,620.94,1.188]
[1743211352847,1.21535346,621.38,620.94,1.188]
[1743211353147,1.21535346,621.37,620.94,1.188]
[1743211353348,1.21535346,621.36,620.94,1.188]
[1743211353545,1.21535346,621.35,620.94,1.188]
[1743211353743,0.93188834,621.35,620.94,1.188]
[1743211354242,0.93188834,621.34,620.94,1.188]
[1743211354945,0.93188834,621.33,620.94,1.188]
[1743211355646,0.93188834,621.32,620.94,1.188]
[1743211356241,0.32147105,622.14,620.94,1.188]
[1743211356442,1.87995677,622.13,620.94,1.188]
[1743211356641,0.32148655,622.11,620.94,1.188]
[1743211356846,1.87995677,622.1,620.94,1.188]
[1743211357046,1.53720218,622.09,620.94,1.188]
[1743211357241,1.87995677,622.08,620.94,1.188]
[1743211357444,1.87995677,622.07,620.94,1.188]
[1743211357645,2.81213542,622.06,620.94,1.188]
[1743211357845,1.87995677,622.05,620.94,1.188]
[1743211358045,2.2014795,622.04,620.94,1.188]
[1743211358249,1.87995677,622.03,620.94,1.188]
[1743211358448,2.20148983,622.02,620.94,1.188]
[1743211358748,2.201495,622.01,620.94,1.188]
[1743211359049,1.87995677,622.0,620.94,1.188]
[1743211359247,1.88017129,621.99,620.94,1.188]
[1743211359448,2.81234994,621.98,620.94,1.188]
[1743211359641,1.88017129,621.97,620.94,1.188]
[1743211359842,1.88017129,621.96,620.94,1.188]
[1743211360149,2.81234994,621.95,620.9,2.932]
[1743211360351,1.88017129,621.94,620.9,2.932]
[1743211360551,1.88017129,621.93,620.9,2.932]
[1743211360753,1.88017129,621.92,620.9,2.932]
[1743211360952,1.88017129,621.91,620.9,2.932]
[1743211361150,1.88036392,621.9,620.9,2.932]
[1743211361349,1.88036392,621.89,620.9,2.932]
[1743211361550,1.88036392,621.88,620.9,2.932]
[1743211361750,2.81254257,621.87,620.9,2.932]
[1743211361952,1.88036392,621.86,620.9,2.932]
[1743211362147,1.88036392,621.85,620.9,2.932]
[1743211362351,1.88036392,621.84,620.9,2.932]
[1743211362551,1.88036392,621.83,620.9,2.932]
[1743211362747,1.88036392,621.82,620.9,2.932]
[1743211362948,1.88036392,621.81,620.9,2.932]
[1743211363247,1.88059519,621.8,620.9,2.932]
[1743211363451,1.88059519,621.79,620.9,2.932]
[1743211363649,1.88059519,621.78,620.9,2.932]
[1743211363848,2.81277384,621.77,620.9,3.765]
[1743211364052,1.88059519,621.76,620.9,3.765]
[1743211364253,1.88059519,621.75,620.9,3.765]
[1743211364448,2.81277384,621.74,620.9,3.765]
[1743211364652,1.88059519,621.73,620.9,3.765]
[1743211364849,1.88059519,621.72,620.9,3.765]
[1743211365056,2.81438434,621.71,620.9,3.765]
[1743211365255,1.88220569,621.7,620.9,3.765]
[1743211365455,1.88220569,621.69,620.9,3.765]
[1743211365650,1.88220569,621.68,620.9,3.765]
[1743211365855,1.88220569,621.67,620.9,3.765]
[1743211366051,1.88220569,621.66,620.9,3.765]
[1743211366254,1.88220569,621.65,620.9,3.765]
[1743211366455,1.88220569,621.64,620.9,3.765]
[1743211366755,2.81438434,621.63,620.9,3.765]
[1743211366953,0.93217865,621.63,620.9,3.765]
[1743211367151,2.8149359,621.62,620.9,3.765]
[1743211367355,1.88275725,621.61,620.9,3.765]
[1743211367654,2.8149359,621.6,620.9,3.765]
[1743211367856,2.8149359,621.59,620.9,3.765]
[1743211368057,1.88275725,621.58,620.9,3.765]
[1743211368350,1.88275725,621.57,620.9,3.765]
[1743211368556,2.8149359,621.56,620.9,3.765]
[1743211368752,1.88275725,621.55,620.9,3.765]
[1743211368950,1.88275725,621.54,620.9,3.765]
[1743211369153,2.8149359,621.53,620.9,3.765]
[1743211369356,1.88275725,621.52,620.9,3.765]
[1743211369551,1.88275725,621.51,620.9,3.765]
[1743211369758,1.88275725,621.5,620.9,3.765]
[1743211369951,1.88275725,621.49,620.9,3.765]
[1743211370152,1.88275725,621.48,620.9,3.765]
[1743211370357,0.93217865,621.51,620.9,3.765]
[1743211370358,1.88275725,621.47,620.9,3.765]
[1743211370558,1.88275725,621.46,620.9,3.765]
[1743211370761,1.88275725,621.45,620.9,3.765]
[1743211370958,1.88275725,621.44,620.9,3.765]
[1743211371157,1.88275725,621.43,620.9,3.765]
[1743211371357,1.88275725,621.42,620.9,3.765]
[1743211371558,1.88275725,621.41,620.9,3.765]
[1743211371859,1.88275725,621.4,620.9,3.765]
[1743211372160,1.21749438,621.39,620.9,3.765]
[1743211372357,1.21749438,621.38,620.9,3.765]
[1743211372553,1.21749438,621.37,620.9,3.765]
[1743211372858,2.14967303,621.36,620.9,3.765]
[1743211373060,1.21749438,621.35,620.9,3.765]
[1743211373259,1.21749438,621.34,620.9,3.765]
[1743211373561,1.21749438,621.33,620.9,3.765]
[1743211373754,2.14967303,621.32,620.9,3.765]
[1743211373957,0.93217865,621.32,620.91,0.2912022]
[1743211374158,1.21942766,621.31,620.91,0.2912022]
[1743211374460,0.93217865,621.32,620.91,0.2912022]
[1743211374657,0.93217865,621.3,620.91,0.2912022]
[1743211375057,0.93217865,621.29,620.91,0.2912022]
[1743211375658,0.93217865,621.28,620.91,0.2912022]
[1743211376453,0.93217865,621.27,620.91,0.2912022]
[1743211377061,0.28020565,621.5,620.91,0.2912022]
[1743211377362,1.88659277,621.49,620.9,0.833]
[1743211377664,2.82207915,621.48,620.9,0.833]
[1743211377859,1.88659277,621.47,620.9,0.833]
[1743211378056,1.88659277,621.46,620.91,0.29120437]
[1743211378262,1.88659277,621.45,620.91,0.29120437]
[1743211378460,1.88659277,621.44,620.91,0.29120437]
[1743211378656,1.88659277,621.43,620.91,1.42620437]
[1743211378862,2.82245196,621.42,620.92,0.29120437]
[1743211379062,1.88696558,621.41,620.92,0.29120437]
[1743211379265,1.22021741,621.4,620.92,0.29120437]
[1743211379461,1.22021741,621.39,620.92,0.29120437]
[1743211379659,1.22021741,621.38,620.92,0.29120437]
[1743211379870,2.15570379,621.37,620.92,0.29120437]
[1743211380072,1.22021741,621.36,620.92,0.29120437]
[1743211380371,1.22021741,621.35,620.92,0.29120437]
[1743211380570,1.22021741,621.34,620.92,0.29120437]
[1743211380767,0.93548638,621.34,620.92,0.29120437]
[1743211381165,0.93548638,621.33,620.91,2.32]
[1743211381371,0.93548638,621.33,620.92,0.29120412]
[1743211381769,0.93548638,621.32,620.92,0.29120412]
[1743211382475,0.93548638,621.31,620.92,0.29120412]
[1743211383276,0.32153823,622.01,620.92,0.29120412]
[1743211383471,0.28020339,621.5,620.92,0.29120412]
[1743211383676,1.88693591,621.49,620.92,0.29120412]
[1743211383869,1.88693591,621.48,620.92,0.29120412]
[1743211384075,1.88693591,621.47,620.91,2.32]
[1743211384270,1.88693591,621.46,620.91,2.32]
[1743211384471,1.88693591,621.45,620.91,2.32]
[1743211384672,1.88693591,621.44,620.91,2.32]
[1743211384875,1.88693591,621.43,620.91,2.32]
[1743211385078,1.88693591,621.42,620.91,2.32]
[1743211385271,1.88693591,621.41,620.91,2.32]
[1743211385470,1.22019803,621.4,620.91,2.32]
[1743211385671,1.22019803,621.39,620.91,2.32]
[1743211385871,2.15573688,621.38,620.91,2.32]
[1743211386076,1.22019803,621.37,620.91,2.32]
[1743211386276,1.22019803,621.36,620.91,2.32]
[1743211386476,1.22019803,621.35,620.91,2.32]
[1743211386676,1.22019803,621.34,620.91,2.32]
[1743211386875,2.15573688,621.33,620.91,2.32]
[1743211387075,2.15573688,621.32,620.91,2.32]
[1743211387275,1.22019803,621.31,620.91,2.32]
[1743211387479,1.22019803,621.3,620.91,2.32]
[1743211387778,2.15573688,621.29,620.91,2.32]
[1743211387982,0.93553885,621.29,620.91,2.32]
[1743211388175,0.93553885,621.28,620.91,2.32]
[1743211388878,0.2802,621.5,620.91,2.32]
[1743211388879,0.93553885,621.27,620.91,2.32]
[1743211389080,0.93553885,621.26,620.91,2.32]